Cogmind - Beta 10.1 @@@ ROGUE MODE // 2020.09.28 @ 14:27:00 Player: Puzzlebark Result: Destroyed by G-34 Mercenary with Small Laser Performance ------------- Evolutions (0) 0 Regions Visited (2) 400 Robots Destroyed (28) 140 Value Destroyed (632) 632 Prototype IDs (0) 0 Alien Tech Used (0) 0 Bonus (57) 57 TOTAL SCORE: 1229 Bonus ------- Follower Combat Kills 57 Cogmind --------- Core Integrity 0/250 Matter 300/300 Energy 90/100 System Corruption 0% Temperature Cool (24) Movement Treading (180) Ox1 Location -10/Mines Parts ------- > --- POWER (1) -------- (None) > --- PROPULSION (2) --- Light Treads > --- UTILITY (2) ------ Large Storage Unit Large Storage Unit > --- WEAPON (2) ------- Medium Laser > --- INVENTORY (16) --- Ion Engine Wheel Compact Wheel Improved Heat Sink Small Storage Unit Hacking Suite Hacking Suite Light Assault Rifle Light Assault Rifle Signal Generator Peak State ------------ > --- POWER ------------ Light Nuclear Core > --- PROPULSION ------- Light Treads Light Treads > --- UTILITY ---------- Large Storage Unit Large Storage Unit > --- WEAPON ----------- EM Pulse Gun Assault Rifle > --- INVENTORY -------- Ion Engine Light Treads Wheel Compact Wheel Small Storage Unit Hacking Suite Hacking Suite Medium Laser [Rating: 10] Favorites ----------- Power Ion Engine Engine Ion Engine Power Core Light Nuclear Core Propulsion Light Treads Treads Light Treads Utility Large Storage Unit Storage Large Storage Unit Protection Light Armor Plating Weapon EM Pulse Gun Energy Gun EM Pulse Gun Ballistic Gun Assault Rifle Launcher Grenade Launcher Build | -11 -10 -10 ------- Run | Scr Mat Min Slots Evolved . | . . . Power . | . . . Propulsion . | . . . Utility . | . . . Weapon . | . . . Parts Attached 16 | 6 8 2 Power 2 | 1 1 . Engine 1 | 1 . . Core 1 | . 1 . Reactor . | . . . Propulsion 3 | 2 . 1 Treads 3 | 2 . 1 Leg . | . . . Wheel . | . . . Hover . | . . . Flight . | . . . Utility 4 | 1 3 . Device . | . . . Storage 3 | 1 2 . Processor . | . . . Hackware . | . . . Protection 1 | . 1 . Artifact . | . . . Weapon 7 | 2 4 1 Energy Gun 4 | 1 2 1 Energy Cannon . | . . . Ballistic Gun 2 | 1 1 . Ballistic Cannon . | . . . Launcher 1 | . 1 . Special Weapon . | . . . Impact Weapon . | . . . Slashing Weapon . | . . . Piercing Weapon . | . . . Special Melee Weapon . | . . . Unidentified Prototypes . | . . . Parts Lost 7 | . 2 5 Power 1 | . . 1 Propulsion 2 | . . 2 Utility . | . . . Weapon 4 | . 2 2 Highest Loss Streak 3 | . 1 3 Average Slot Usage (%) 86 | . 94 67 Engine 8 | . 11 . Core 3 | . 2 5 Treads 24 | . 28 14 Storage 21 | . 19 28 Protection 3 | . 4 . Energy Gun 13 | . 13 11 Ballistic Gun 6 | . 5 7 Launcher 4 | . 6 . Naked Turns . | . . . Heaviest Build 41 | 13 41 41 Greatest Support 40 | 40 40 20 Greatest Overweight (x) 2 | . 1 2 Average Overweight (x) . | . . 1 Largest Inventory Capacity 16 | 6 16 16 Average Capacity 11 | 4 9 16 Most Carried 10 | 3 8 10 Average Carried 5 | 1 4 8 Final Capacity 16 | 6 16 16 Final Carried 10 | 3 8 10 Class Distribution -------------------- 100% | Mutant Dominant Class ---------------- Mutant | -10/Materials Mutant | -10/Mines Resources | -11 -10 -10 ----------- Run | Scr Mat Min Matter Collected 419 | 243 122 54 Remotely . | . . . Salvage Created 1011 | . 780 231 Parts 56 | . 41 15 Haulers Intercepted 1 | . 1 . Recyclers Shooed . | . . . Parts Field Recycled . | . . . Retrieved Matter . | . . . Parts Self-Destructed . | . . . Prevented . | . . . Kills | -11 -10 -10 ------- Run | Scr Mat Min Combat Hostiles Destroyed 20 | . 12 8 Guns 16 | . 9 7 AOE 3 | . 2 1 Classes Destroyed 7 | . 7 . Worker 1 | . 1 . Builder 1 | . 1 . Hauler 1 | . 1 . Recycler 2 | . 2 . Operator 3 | . 3 . Swarmer 7 | . 3 4 Grunt 13 | . 9 4 Best Kill Streak 5 | . 5 3 Combat Bots Only 3 | . 3 3 Max Kills in Single Turn 2 | . 2 1 Gunslinging . | . . . Exploded 1 | . 1 1 Melee . | . . . Uniques/NPCs Destroyed . | . . . Combat | -11 -10 -10 -------- Run | Scr Mat Min Damage Taken 1177 | . 580 597 Core 254 | . 100 154 Absorbed by Shields . | . . . Core Remaining (%) 100 | 100 . . Volleys Fired 131 | . 78 53 Largest 2 | . 2 1 Hottest 60 | . 60 50 Shots Fired 132 | . 79 53 Gun 130 | . 77 53 Cannon . | . . . Launcher 2 | . 2 . Special . | . . . Kinetic 18 | . 5 13 Thermal 29 | . 16 13 Explosive 2 | . 2 . Electromagnetic 83 | . 56 27 Robot Hit Streak 13 | . 13 6 Robot Miss Streak 6 | . 3 6 Penetration Max . | . . . Secondary Targets . | . . . Shots Hit Robots 86 | . 55 31 Core Hits 44 | . 32 12 Critical Hits . | . . . Critical Kills . | . . . Critical Parts Destroyed . | . . . Melee Attacks . | . . . Impact . | . . . Slashing . | . . . Piercing . | . . . Sneak Attacks . | . . . Combat Hostiles . | . . . Follow-up Attacks . | . . . Damage Inflicted 1469 | . 907 562 Guns 1193 | . 781 412 Cannons . | . . . Explosions 276 | . 126 150 Melee . | . . . Ramming . | . . . Kinetic 137 | . 37 100 Thermal 459 | . 223 236 Explosive 51 | . 51 . Electromagnetic 822 | . 596 226 Impact . | . . . Slashing . | . . . Piercing . | . . . Highest Corruption . | . . . Average Corruption . | . . . Corruption Purged . | . . . Overload Shots . | . . . Overflow Damage 20 | . . 20 Projectiles . | . . . Explosions 20 | . . 20 Melee . | . . . Knockbacks . | . . . Impact . | . . . Kinetic . | . . . Secondary . | . . . Self-Inflicted Damage 104 | . 54 50 Shots 3 | . 1 2 Rammed . | . . . Targets Rammed . | . . . Kicked . | . . . Crushed . | . . . Highest Temperature 171 | . 171 152 Average Temperature 46 | . 46 45 Received Heat Transfer 480 | . 249 231 Siege Activations . | . . . Robots Corrupted 1 | . 1 . Combat Hostiles 1 | . 1 . Parts Fried 5 | . 5 . Impact Corruptions . | . . . Robots Melted . | . . . Combat Hostiles . | . . . Parts Melted 1 | . 1 . Heat Transferred 1003 | . 544 459 Parts Sabotaged . | . . . Parts Stolen . | . . . Parts Stripped . | . . . Power Chain Reactions 4 | . 1 3 Missiles Intercepted . | . . . Alert | -11 -10 -10 ------- Run | Scr Mat Min Peak Influence 208 | . 174 208 Initial 23 | . . 23 Average 69 | . 52 132 Maximum Alert Level 1 | . . 1 Low Security (%) 89 | 100 100 58 Level 1 10 | . . 41 Level 2 . | . . . Level 3 . | . . . Level 4 . | . . . Level 5 . | . . . High Security . | . . . Max Security . | . . . Squads Dispatched 4 | . 3 1 Investigation . | . . . Extermination . | . . . Reinforcement 3 | . 3 . Assault 1 | . . 1 Garrison . | . . . Intercept . | . . . Construction Impeded . | . . . Haulers Reinforced . | . . . Stealth | -11 -10 -10 --------- Run | Scr Mat Min Distress Signals 2 | . 2 . Communications Jammed . | . . . Distress Signals . | . . . Times Spotted 47 | . 28 19 Peak Tracking Total 6 | . 4 6 Tactical Retreats 3 | . 1 2 Traps | -11 -10 -10 ------- Run | Scr Mat Min Traps Triggered . | . . . Indirectly . | . . . Trap Hack Attempts . | . . . Triggered . | . . . Disarmed . | . . . Reprogrammed . | . . . Reused . | . . . Traps Extracted . | . . . Installed . | . . . Triggered . | . . . Machines | -11 -10 -10 ---------- Run | Scr Mat Min Machines Disabled . | . . . Max in Single Turn . | . . . Machines Sabotaged . | . . . Garrisons Compromised . | . . . Overloaded Fab Kills . | . . . Fab Network Shutdowns . | . . . Hacking | -11 -10 -10 --------- Run | Scr Mat Min Machines Accessed 3 | . 3 . Terminals 3 | . 3 . Fabricators . | . . . Repair Stations . | . . . Recycling Units . | . . . Scanalyzers . | . . . Garrison Access . | . . . Total Hacks 11 | . 11 . Successful 8 | . 8 . Failed 3 | . 3 . Catastrophic 1 | . 1 . Database Lockouts . | . . . Manual 11 | . 11 . Terminals 11 | . 11 . Fabricators . | . . . Repair Stations . | . . . Recycling Units . | . . . Scanalyzers . | . . . Garrison Access . | . . . Terminal Hacks 2 | . 2 . Terminal Index 1 | . 1 . Unreport Threat 1 | . 1 . Fabricator Hacks . | . . . Repair Station Hacks . | . . . Recycling Unit Hacks . | . . . Scanalyzer . | . . . Garrison Access Hacks . | . . . Unauthorized Hacks 6 | . 6 . Terminals 6 | . 6 . Track 2 | . 2 . Assimilate 1 | . 1 . Botnet 2 | . 2 . Operators 1 | . 1 . Fabricators . | . . . Repair Stations . | . . . Recycling Units . | . . . Scanalyzers . | . . . Garrison Access . | . . . Data Cores Recovered . | . . . Used . | . . . Hacking Detections 3 | . 3 . Full Trace Events . | . . . Feedback Events . | . . . Feedback Blocked . | . . . Robot Schematics Acquired . | . . . Robots Built . | . . . Matter . | . . . Time . | . . . Total Robot Build Rating . | . . . Part Schematics Acquired . | . . . Parts Built . | . . . Matter . | . . . Time . | . . . Total Part Build Rating . | . . . Parts Repaired . | . . . Time . | . . . Parts Recycled . | . . . Recycled Matter . | . . . Retrieved Matter . | . . . Retrieved Components . | . . . Parts Scanalyzed . | . . . Part Schematics Acquired . | . . . Parts Damaged . | . . . Bothacking | -11 -10 -10 ------------ Run | Scr Mat Min Used RIF Installer . | . . . Robots Hacked . | . . . Non-combat . | . . . Combat . | . . . Robot Hacks Applied . | . . . Relay Couplers Released . | . . . Robots Rewired . | . . . Allies Hacked . | . . . Hacks Repelled . | . . . Allies | -11 -10 -10 -------- Run | Scr Mat Min Total Allies 1 | . . 1 Largest Group 1 | . . 1 Highest-Rated Group 31 | . . 31 Highest-Rated Ally 31 | . . 31 Total Orders . | . . . Ally Attacks 15 | . . 15 Total Damage 171 | . . 171 Kills 3 | . . 3 Allies Corrupted . | . . . Allies Melted . | . . . Intel | -11 -10 -10 ------- Run | Scr Mat Min Robot Analysis Total . | . . . Derelict Logs Recovered . | . . . Drone Launches . | . . . Drone Recoveries . | . . . Exploration | -11 -10 -10 ------------- Run | Scr Mat Min Turns Passed 1411 | 98 951 362 Spaces Moved 581 | 58 388 135 Core 6 | 6 . . Treads 575 | 52 388 135 Legs . | . . . Wheels . | . . . Hover . | . . . Flight . | . . . Fastest Speed 50 | 50 160 180 Average Speed 170 | 148 167 186 Slowest Speed 200 | 160 180 200 Overloaded Moves . | . . . Propulsion Burnouts . | . . . Robots Hopped . | . . . Cave-ins Triggered . | . . . Exploration Rate (%) 30 | 4 46 42 Regions Visited 2 Branch Regions 1 Pre-discovered Areas . | . . . Known Exits Taken . | . . . Unknown Exits Taken 2 | 1 1 . Scrap Searched . | . . . Spaces Dug 6 | . 6 . Terrain Destroyed 32 | . 14 18 Melee . | . . . Projectile . | . . . AOE 32 | . 14 18 Terrain Rammed . | . . . Walls Destroyed . | . . . Machines Disabled . | . . . Actions | -11 -10 -10 --------- Run | Scr Mat Min Total 871 | 68 609 194 Wait 127 | . 127 . Move 579 | 57 387 135 Hop . | . . . Pick Up 16 | 5 7 4 Fast Attach 5 | 4 1 . Attach 8 | 2 4 2 Detach 1 | . 1 . Swap 3 | . 3 . Drop 1 | . 1 . Fire 131 | . 78 53 Melee . | . . . Ram . | . . . Kick . | . . . Crush . | . . . Escape Stasis . | . . . Rewire . | . . . Trap . | . . . Miscellaneous . | . . . Route ------- -11/Scrapyard -10/Materials -10/Mines History --------- Turn | Location | Event 5 | -11/Scrapyard | Discovered new exit (range 16) 99 | -11/Scrapyard | Entered Materials 300 | -10/Materials | Build established: Mutant 662 | -10/Materials | Discovered new exit (range 15) 1050 | -10/Materials | Entered Mines 1069 | -10/Mines | Core integrity fell below 50% 1095 | -10/Mines | Met a Derelict testing a Signal Generator 1118 | -10/Mines | Found Signal Generator 1199 | -10/Mines | Core integrity fell below 20% 1225 | -10/Mines | Lost 3 parts (1p1n1w) 1412 | -10/Mines | Destroyed by G-34 Mercenary with Small Laser Last Messages --------------- 01201_ Acquired 3 matter. 01201_ G-47 Trooper misfires. 01203_ Acquired 3 matter. 01204_ U-05 Engineer lays Concrete. 01204_ G-47 Trooper destroyed. 01205_ Acquired 3 matter. 01205_ M-13 Machinist fits Backup Laser I on G-47 Trooper. 01206_ U-05 Engineer builds a Wall. 01214_ G-47 Trooper destroyed. 01223_ Acquired 9 matter. 01227_ Acquired Imp. Heat Sink. 01239_ Assault Rifle destroyed. 01248_ S-10 Pest destroyed. 01256_ K-01 Serf collects debris. 01256_ Acquired 11 matter. 01259_ K-01 Serf collects debris. 01260_ S-10 Pest destroyed. 01262_ K-01 Serf collects debris. 01278_ Acquired Lgt. Assault Rifle. 01299_ K-01 Serf collects debris. Map ----- +----------------------------------------------------+ | ????????????????????????????????????????????? | | ????????????????????????????????????????????? | | ????????????????????????????????????????????? | | ????????????????????????????????????????????? | | ????????????????????????????????????????????? | | ????????????????????????????????????????????? | | ????????????????????????????????????????????? | | ????????????????????????????????????????????? | | ????????????????????????????????????????????? | | ????????????????????????????????????????????? | | ????????????????????????????????????????????? | | ????????????????????????????????????????????? | | ????????????????????????????????????????????? | | ????????????????????????????????????????????? | | ????????????????????????????????????????????? | | ????????????????????????????????????????????? | | ##### #???????????????????????????????????? | | #???????????????????????????????????? | | ###### #????????????????????????????????????? | | ????????????????????????????????"""?????????? | | #???????????????????????????????"""?????????? | | #???????????????????????????????"""?????????? | | #??????????????????????????????? ??????????? | | ###????????????????????#####??? #??????????? | | ##??????????????????## ##?? #??????????? | | #??????????????????# @ ##? #??????????? | | ##?????????????????# g## #??????????? | | ## ??????????????# g #??????????? | | ??????????????## #??????????? | | ?????????????## ##??????????? | | #??? ????????????## ## #???????????? | | #?????????????????## #### #???????????? | | #???????????????### ##?# #??????????? | | #??????????????## #?## #?????????? | | #??????????????# #??# #????????? | | ######?????????# ##??## #???????? | | ##????????## ###????## ??????? | | #?????????### #????????# ####?????? | | #???????????# #?????????# ##????????? | | ##??????###### #??????????###?????????? | | ####???????# #??????????????????????? | | #??????????# #??????????????????????? | | #??????????# ## ###??????????????????????? | | ############ ## #????????????????????????? | | ## #????????????????????????? | | ###### ########### #????????????????????????? | | ?????# #?????????# #????????????????????????? | | ?????# #?????????# #????????????????????????? | | ?????# #?????????# #????????????????????????? | | ?????# #?????????# ?????????????????????????? | +----------------------------------------------------+ Best States ------------- Heat Dissipation 25 Energy Generation 14 Energy Capacity 250 Matter Stores 300 Matter Capacity 300 Sight Range 16 Terrain Scan Density 10 Armor Coverage 150 Evasion (%) 40 Recoil Reduction 2 Item Schematics ----------------- None Robot Schematics ------------------ None Fabricated ------------ Nothing Alien Tech Used ----------------- None Achievements -------------- None Challenges ------------ None Game ------ Seed RemoteParticleCharger Manual? 0 Play Time 00:12:22 Cumulative 178.2 hours Start 2020.09.28 @ 14:12:24 End 2020.09.28 @ 14:27:00 Sessions 1 Manual Loads 0 Difficulty Rogue Special Mode None Game No. 167 Rogue 106 Adventurer 61 Explorer 0 Win Type - Total 9 Types 7/0/2/0/0/0/0/0/0 Lore% 48 Gallery% 75 Achievement% 59 Wizard Run 0 Options --------- ASCII 0 Keyboard 0 Movement Mouse Keybinds 0 Fullscreen 2 Font 24/Proggy Map View 76x50 Tactical HUD 1 Map Filters NONE Filters NONE Steam 1 RUN: 708e2cc9-d86c-4c32-ae42-a68eee5e9361